[Event "Late-Titled-Tuesday-Blitz-June-04-2024"]
[Site "Chess.com"]
[Date "2024.06.04"]
[Round "7"]
[White "sari07"]
[Black "Love7Unicorn"]
[Result "0-1"]
[WhiteElo "2396"]
[BlackElo "2557"]
[TimeControl "180+1"]
[EndTime "15:17:10 PDT"]
[Termination "Love7Unicorn won by checkmate"]

1. d4 {[%clk 0:03:00.9]} 1... Nf6 {[%clk 0:02:55.6]} 2. c4 {[%clk 0:02:59.4]}
2... e6 {[%clk 0:02:55.9]} 3. Nf3 {[%clk 0:02:56.7]} 3... b6 {[%clk 0:02:55.8]}
4. e3 {[%clk 0:02:56.2]} 4... Bb7 {[%clk 0:02:55.9]} 5. Bd3 {[%clk 0:02:53.2]}
5... Bb4+ {[%clk 0:02:54.7]} 6. Bd2 {[%clk 0:02:52]} 6... c5 {[%clk 0:02:55.3]}
7. Bxb4 {[%clk 0:02:47.3]} 7... cxb4 {[%clk 0:02:56.2]} 8. Nbd2 {[%clk
0:02:40.9]} 8... O-O {[%clk 0:02:55.8]} 9. O-O {[%clk 0:02:38.9]} 9... d6 {[%clk
0:02:55.8]} 10. a3 {[%clk 0:02:33.2]} 10... bxa3 {[%clk 0:02:47.7]} 11. Rxa3
{[%clk 0:02:34.1]} 11... a5 {[%clk 0:02:46.7]} 12. e4 {[%clk 0:02:23.6]} 12...
Nfd7 {[%clk 0:02:40.8]} 13. e5 {[%clk 0:02:09.8]} 13... dxe5 {[%clk 0:01:59.6]}
14. Nxe5 {[%clk 0:01:58.2]} 14... Nf6 {[%clk 0:01:46.7]} 15. Ndf3 {[%clk
0:01:45.2]} 15... Nc6 {[%clk 0:01:12.3]} 16. Re1 {[%clk 0:01:14.8]} 16... Qd6
{[%clk 0:01:00.5]} 17. Ng5 {[%clk 0:00:29.4]} 17... h6 {[%clk 0:00:30.1]} 18.
Ne4 {[%clk 0:00:29.5]} 18... Nxe4 {[%clk 0:00:28]} 19. Bxe4 {[%clk 0:00:29.9]}
19... Rad8 {[%clk 0:00:14.2]} 20. Bxc6 {[%clk 0:00:19.3]} 20... Bxc6 {[%clk
0:00:14.4]} 21. Rg3 {[%clk 0:00:19.9]} 21... f5 {[%clk 0:00:02.8]} 22. Qh5
{[%clk 0:00:18.2]} 22... Rf6 {[%clk 0:00:02.7]} 23. Rg6 {[%clk 0:00:13.5]} 23...
Be8 {[%clk 0:00:02.5]} 24. Rd1 {[%clk 0:00:07.5]} 24... Bxg6 {[%clk 0:00:02.5]}
25. Nxg6 {[%clk 0:00:08.4]} 25... Kh7 {[%clk 0:00:02.7]} 26. Ne5 {[%clk
0:00:08.2]} 26... g6 {[%clk 0:00:03.2]} 27. Qf3 {[%clk 0:00:08]} 27... Rff8
{[%clk 0:00:02.2]} 28. h4 {[%clk 0:00:07.7]} 28... Rg8 {[%clk 0:00:02.2]} 29. g3
{[%clk 0:00:07]} 29... Rg7 {[%clk 0:00:02.2]} 30. Qe3 {[%clk 0:00:06]} 30... Rc7
{[%clk 0:00:02.1]} 31. Qf3 {[%clk 0:00:06.4]} 31... Qe7 {[%clk 0:00:02.4]} 32.
b3 {[%clk 0:00:06.6]} 32... Qf6 {[%clk 0:00:02.7]} 33. h5 {[%clk 0:00:07]} 33...
gxh5 {[%clk 0:00:02.3]} 34. Qxh5 {[%clk 0:00:06.7]} 34... Rg7 {[%clk 0:00:02.6]}
35. Qf3 {[%clk 0:00:06.7]} 35... Rdg8 {[%clk 0:00:03]} 36. Re1 {[%clk
0:00:06.8]} 36... Qd8 {[%clk 0:00:02.3]} 37. Nc6 {[%clk 0:00:06.5]} 37... Qd6
{[%clk 0:00:02.2]} 38. Re5 {[%clk 0:00:06.3]} 38... Rc7 {[%clk 0:00:02]} 39. d5
{[%clk 0:00:05.8]} 39... Rxc6 {[%clk 0:00:01.6]} 40. Rxe6 {[%clk 0:00:05.4]}
40... Qxe6 {[%clk 0:00:01.1]} 41. dxe6 {[%clk 0:00:05.6]} 41... Rxe6 {[%clk
0:00:02]} 42. Qb7+ {[%clk 0:00:05.6]} 42... Rg7 {[%clk 0:00:02]} 43. Qd5 {[%clk
0:00:06.1]} 43... Rf6 {[%clk 0:00:02.5]} 44. Qe5 {[%clk 0:00:06.1]} 44... Kg6
{[%clk 0:00:03.2]} 45. Qf4 {[%clk 0:00:05.9]} 45... Rgf7 {[%clk 0:00:03.6]} 46.
Qe5 {[%clk 0:00:06.1]} 46... Kg7 {[%clk 0:00:03.6]} 47. f4 {[%clk 0:00:05.8]}
47... Kg8 {[%clk 0:00:03.6]} 48. Kg2 {[%clk 0:00:06.1]} 48... Rf8 {[%clk
0:00:03.5]} 49. Qd5+ {[%clk 0:00:06.1]} 49... Kh7 {[%clk 0:00:04]} 50. Kf3
{[%clk 0:00:06.7]} 50... Kg6 {[%clk 0:00:04.6]} 51. Qe5 {[%clk 0:00:07]} 51...
Rd8 {[%clk 0:00:03.2]} 52. Qe7 {[%clk 0:00:06.7]} 52... Rdd6 {[%clk 0:00:03.3]}
53. Qe8+ {[%clk 0:00:06.5]} 53... Kg7 {[%clk 0:00:03.8]} 54. Qe7+ {[%clk
0:00:06.9]} 54... Kg8 {[%clk 0:00:04.3]} 55. Qe8+ {[%clk 0:00:07.2]} 55... Kh7
{[%clk 0:00:05]} 56. Qb8 {[%clk 0:00:07.3]} 56... Rd3+ {[%clk 0:00:04]} 57. Kf2
{[%clk 0:00:07]} 57... Rd7 {[%clk 0:00:04.2]} 58. Qc8 {[%clk 0:00:07.2]} 58...
Re7 {[%clk 0:00:04.2]} 59. Qd8 {[%clk 0:00:06.8]} 59... Rfe6 {[%clk 0:00:04.4]}
60. Qf8 {[%clk 0:00:06.7]} 60... Kg6 {[%clk 0:00:04.2]} 61. Qg8+ {[%clk
0:00:06.6]} 61... Kf6 {[%clk 0:00:04.2]} 62. Qf8+ {[%clk 0:00:07]} 62... Kg6
{[%clk 0:00:04.4]} 63. Qg8+ {[%clk 0:00:07.5]} 63... Kh5 {[%clk 0:00:03.7]} 64.
Kf1 {[%clk 0:00:06.4]} 64... Re1+ {[%clk 0:00:03.8]} 65. Kf2 {[%clk 0:00:06.9]}
65... R7e2+ {[%clk 0:00:04.1]} 66. Kf3 {[%clk 0:00:07.4]} 66... Re3+ {[%clk
0:00:04.7]} 67. Kf2 {[%clk 0:00:07.8]} 67... R1e2+ {[%clk 0:00:05]} 68. Kf1
{[%clk 0:00:08.3]} 68... Re7 {[%clk 0:00:04.8]} 69. Qf8 {[%clk 0:00:05.8]} 69...
Kg4 {[%clk 0:00:04.2]} 70. Qxh6 {[%clk 0:00:05.3]} 70... Re1+ {[%clk 0:00:03.8]}
71. Kg2 {[%clk 0:00:05.3]} 71... R7e2# {[%clk 0:00:04.4]} 0-1

[Event "Late-Titled-Tuesday-Blitz-June-04-2024"]
[Site "Chess.com"]
[Date "2024.06.04"]
[Round "7"]
[White "crazy_but_lazy"]
[Black "bubeliang"]
[Result "1-0"]
[WhiteElo "2668"]
[BlackElo "2847"]
[TimeControl "180+1"]
[EndTime "15:17:14 PDT"]
[Termination "crazy_but_lazy won by resignation"]

1. e4 {[%clk 0:03:00.9]} 1... c6 {[%clk 0:02:58]} 2. d4 {[%clk 0:02:57.6]} 2...
d5 {[%clk 0:02:58.9]} 3. e5 {[%clk 0:02:56.6]} 3... c5 {[%clk 0:02:57.9]} 4. Nf3
{[%clk 0:02:52.5]} 4... Bg4 {[%clk 0:02:56.9]} 5. dxc5 {[%clk 0:02:37.2]} 5...
Nc6 {[%clk 0:02:56.1]} 6. c3 {[%clk 0:02:29.3]} 6... e6 {[%clk 0:02:51.3]} 7.
Be3 {[%clk 0:02:28.5]} 7... a6 {[%clk 0:02:49.6]} 8. Be2 {[%clk 0:02:09.8]} 8...
Bxf3 {[%clk 0:02:46.2]} 9. Bxf3 {[%clk 0:02:02.5]} 9... Nxe5 {[%clk 0:02:45.9]}
10. Be2 {[%clk 0:02:03]} 10... Nf6 {[%clk 0:02:41.7]} 11. O-O {[%clk 0:02:02.5]}
11... Be7 {[%clk 0:02:41.5]} 12. b4 {[%clk 0:02:02.2]} 12... O-O {[%clk
0:02:41.1]} 13. Nd2 {[%clk 0:02:02.8]} 13... Nc6 {[%clk 0:02:33.3]} 14. f4
{[%clk 0:01:59.1]} 14... d4 {[%clk 0:02:25.2]} 15. cxd4 {[%clk 0:01:55.5]} 15...
Nxb4 {[%clk 0:02:05.5]} 16. Bf3 {[%clk 0:01:41.5]} 16... Nfd5 {[%clk 0:02:03.2]}
17. Bf2 {[%clk 0:01:39.9]} 17... Bf6 {[%clk 0:02:00.5]} 18. Ne4 {[%clk
0:01:36.9]} 18... Nc6 {[%clk 0:01:55.5]} 19. Rb1 {[%clk 0:01:29.8]} 19... Qd7
{[%clk 0:01:51.3]} 20. Qd2 {[%clk 0:01:15]} 20... Rfd8 {[%clk 0:01:46.3]} 21.
Rfd1 {[%clk 0:01:14.6]} 21... Be7 {[%clk 0:01:31.7]} 22. Kh1 {[%clk 0:00:48.1]}
22... Nf6 {[%clk 0:01:27.6]} 23. Nxf6+ {[%clk 0:00:32.6]} 23... Bxf6 {[%clk
0:01:28.5]} 24. d5 {[%clk 0:00:33.3]} 24... exd5 {[%clk 0:01:27]} 25. Qxd5
{[%clk 0:00:33.4]} 25... Qc7 {[%clk 0:01:22.6]} 26. Qc4 {[%clk 0:00:29.3]} 26...
h6 {[%clk 0:01:18.6]} 27. g3 {[%clk 0:00:27.9]} 27... Rac8 {[%clk 0:01:15.3]}
28. Kg2 {[%clk 0:00:22.1]} 28... Be7 {[%clk 0:01:11.3]} 29. Rxd8+ {[%clk
0:00:06.1]} 29... Nxd8 {[%clk 0:01:05.8]} 30. Qb3 {[%clk 0:00:05.3]} 30... Bxc5
{[%clk 0:01:04.7]} 31. Rc1 {[%clk 0:00:04.9]} 31... b6 {[%clk 0:01:03.6]} 32.
Bxc5 {[%clk 0:00:04.5]} 32... bxc5 {[%clk 0:01:04.5]} 33. Bd5 {[%clk 0:00:04.9]}
33... Qd7 {[%clk 0:00:57.4]} 34. h4 {[%clk 0:00:04.8]} 34... Ne6 {[%clk
0:00:56.4]} 35. Bxe6 {[%clk 0:00:04.4]} 35... Qxe6 {[%clk 0:00:52.4]} 36. Qxe6
{[%clk 0:00:03.9]} 36... fxe6 {[%clk 0:00:53.3]} 37. Rc4 {[%clk 0:00:04.4]}
37... Kf7 {[%clk 0:00:50.6]} 38. Kf3 {[%clk 0:00:05]} 38... Ke7 {[%clk
0:00:51.2]} 39. Ke4 {[%clk 0:00:05.5]} 39... Kd6 {[%clk 0:00:51.7]} 40. g4
{[%clk 0:00:04.2]} 40... Rb8 {[%clk 0:00:50.8]} 41. a3 {[%clk 0:00:03.1]} 41...
Rb6 {[%clk 0:00:46.7]} 42. h5 {[%clk 0:00:02.4]} 42... Rc6 {[%clk 0:00:45]} 43.
g5 {[%clk 0:00:02]} 43... Rc8 {[%clk 0:00:38.7]} 44. Rc3 {[%clk 0:00:02.4]}
44... c4 {[%clk 0:00:37.2]} 45. Kd4 {[%clk 0:00:02.9]} 45... e5+ {[%clk
0:00:35.6]} 46. fxe5+ {[%clk 0:00:03.1]} 46... Ke6 {[%clk 0:00:36.3]} 47. gxh6
{[%clk 0:00:03]} 47... gxh6 {[%clk 0:00:36.2]} 48. Rxc4 {[%clk 0:00:03.3]} 48...
Rg8 {[%clk 0:00:08.9]} 49. Rc6+ {[%clk 0:00:03.6]} 49... Kf5 {[%clk 0:00:06.3]}
50. Rxh6 {[%clk 0:00:03.4]} 50... Rg4+ {[%clk 0:00:06.9]} 51. Kd5 {[%clk
0:00:03.8]} 51... Ra4 {[%clk 0:00:07.8]} 52. Rf6+ {[%clk 0:00:03.9]} 52... Kg5
{[%clk 0:00:08.7]} 53. Rf1 {[%clk 0:00:03.6]} 53... Rxa3 {[%clk 0:00:08.3]} 54.
e6 {[%clk 0:00:04.1]} 54... Re3 {[%clk 0:00:08.8]} 55. Kd6 {[%clk 0:00:04.2]}
55... Kxh5 {[%clk 0:00:08.8]} 56. e7 {[%clk 0:00:04.5]} 56... Kg6 {[%clk
0:00:09]} 57. Kd7 {[%clk 0:00:04.3]} 57... Rd3+ {[%clk 0:00:09.4]} 58. Ke8
{[%clk 0:00:04.7]} 58... Kg7 {[%clk 0:00:09]} 59. Rg1+ {[%clk 0:00:04.6]} 59...
Kh7 {[%clk 0:00:08.9]} 60. Ra1 {[%clk 0:00:04.8]} 60... Kg7 {[%clk 0:00:05.1]}
61. Rxa6 {[%clk 0:00:04.9]} 61... Rd4 {[%clk 0:00:05.7]} 62. Ra1 {[%clk
0:00:05.2]} 62... Rd2 {[%clk 0:00:05.1]} 63. Rg1+ {[%clk 0:00:05.6]} 63... Kh7
{[%clk 0:00:05.7]} 64. Rg4 {[%clk 0:00:05.7]} 64... Kh6 {[%clk 0:00:05.7]} 65.
Kf7 {[%clk 0:00:05.9]} 65... Rf2+ {[%clk 0:00:04.7]} 66. Ke6 {[%clk 0:00:06.3]}
66... Re2+ {[%clk 0:00:05.3]} 67. Kf6 {[%clk 0:00:06.6]} 67... Kh5 {[%clk
0:00:05.9]} 68. Rg5+ {[%clk 0:00:06.3]} 68... Kh6 {[%clk 0:00:06.6]} 69. Re5
{[%clk 0:00:07.1]} 69... Rf2+ {[%clk 0:00:07.3]} 70. Ke6 {[%clk 0:00:07.5]}
70... Kg7 {[%clk 0:00:07.2]} 71. e8=Q {[%clk 0:00:07.5]} 71... Rf6+ {[%clk
0:00:08.1]} 72. Kd7 {[%clk 0:00:08]} 72... Rg6 {[%clk 0:00:09]} 73. Re7+ {[%clk
0:00:08.4]} 73... Kh6 {[%clk 0:00:08]} 74. Re6 {[%clk 0:00:08]} 74... Rxe6
{[%clk 0:00:08.9]} 75. Qxe6+ {[%clk 0:00:08.4]} 75... Kg5 {[%clk 0:00:09.6]} 76.
Qe3+ {[%clk 0:00:08.8]} 1-0

[Event "Late-Titled-Tuesday-Blitz-June-04-2024"]
[Site "Chess.com"]
[Date "2024.06.04"]
[Round "7"]
[White "dasatcu90"]
[Black "dosto07"]
[Result "1/2-1/2"]
[WhiteElo "2267"]
[BlackElo "2508"]
[TimeControl "180+1"]
[EndTime "15:17:34 PDT"]
[Termination "Game drawn by repetition"]

1. d4 {[%clk 0:03:00.9]} 1... d5 {[%clk 0:02:59.5]} 2. Nf3 {[%clk 0:03:00.3]}
2... Nf6 {[%clk 0:02:59.8]} 3. g3 {[%clk 0:02:59.1]} 3... c6 {[%clk 0:02:58.6]}
4. Bg2 {[%clk 0:02:58.9]} 4... Bf5 {[%clk 0:02:59.2]} 5. O-O {[%clk 0:02:57.8]}
5... h6 {[%clk 0:02:54.8]} 6. c4 {[%clk 0:02:57.6]} 6... e6 {[%clk 0:02:53.6]}
7. Nc3 {[%clk 0:02:54.7]} 7... Nbd7 {[%clk 0:02:53.5]} 8. cxd5 {[%clk
0:02:54.2]} 8... exd5 {[%clk 0:02:52.8]} 9. Ne5 {[%clk 0:02:53.3]} 9... Bd6
{[%clk 0:02:50.8]} 10. Bf4 {[%clk 0:02:50.3]} 10... Qe7 {[%clk 0:02:50.9]} 11.
Qd2 {[%clk 0:02:46.8]} 11... O-O {[%clk 0:02:50.2]} 12. Nxd7 {[%clk 0:02:45.7]}
12... Qxd7 {[%clk 0:02:49.5]} 13. Bxd6 {[%clk 0:02:44.1]} 13... Qxd6 {[%clk
0:02:49.8]} 14. a3 {[%clk 0:02:40.9]} 14... a5 {[%clk 0:02:47.4]} 15. Rac1
{[%clk 0:02:39.4]} 15... Rfe8 {[%clk 0:02:46.5]} 16. e3 {[%clk 0:02:39.5]} 16...
h5 {[%clk 0:02:46.2]} 17. h4 {[%clk 0:02:22.4]} 17... Qe6 {[%clk 0:02:41.9]} 18.
Ne2 {[%clk 0:02:21.2]} 18... Ne4 {[%clk 0:02:39.7]} 19. Qe1 {[%clk 0:02:15.8]}
19... Qd7 {[%clk 0:02:37]} 20. Nf4 {[%clk 0:02:13.6]} 20... g6 {[%clk
0:02:36.8]} 21. Kh2 {[%clk 0:01:50]} 21... a4 {[%clk 0:02:36.8]} 22. Bxe4 {[%clk
0:01:35]} 22... Bxe4 {[%clk 0:02:31.7]} 23. Qd2 {[%clk 0:01:29.1]} 23... f6
{[%clk 0:02:14.7]} 24. Nd3 {[%clk 0:01:27.5]} 24... Qg4 {[%clk 0:02:06.5]} 25.
Rfd1 {[%clk 0:00:42.3]} 25... Qf3 {[%clk 0:01:56]} 26. Rg1 {[%clk 0:00:31.1]}
26... Kh7 {[%clk 0:01:37.5]} 27. Ne1 {[%clk 0:00:25.2]} 27... Qg4 {[%clk
0:01:30.3]} 28. Qd1 {[%clk 0:00:23.9]} 28... Qe6 {[%clk 0:01:21.4]} 29. Rc3
{[%clk 0:00:18]} 29... Ra6 {[%clk 0:01:16.7]} 30. f3 {[%clk 0:00:18.3]} 30...
Bf5 {[%clk 0:01:16.8]} 31. Ng2 {[%clk 0:00:18.2]} 31... Rb6 {[%clk 0:01:15.1]}
32. Qd2 {[%clk 0:00:18]} 32... Qd6 {[%clk 0:01:01.3]} 33. Nf4 {[%clk 0:00:18]}
33... Rb5 {[%clk 0:00:53.4]} 34. Re1 {[%clk 0:00:17.2]} 34... Bd7 {[%clk
0:00:41.2]} 35. Kg2 {[%clk 0:00:17.2]} 35... b6 {[%clk 0:00:36.7]} 36. Qc2
{[%clk 0:00:16.8]} 36... Bf5 {[%clk 0:00:33.3]} 37. Qxa4 {[%clk 0:00:17]} 37...
Rxb2+ {[%clk 0:00:32.8]} 38. Re2 {[%clk 0:00:15.2]} 38... Rxe2+ {[%clk
0:00:30.2]} 39. Nxe2 {[%clk 0:00:16.1]} 39... Qd7 {[%clk 0:00:24.1]} 40. Qxc6
{[%clk 0:00:15.8]} 40... Qxc6 {[%clk 0:00:20.7]} 41. Rxc6 {[%clk 0:00:16.3]}
41... Rxe3 {[%clk 0:00:21.3]} 42. Nf4 {[%clk 0:00:14.3]} 42... Rxa3 {[%clk
0:00:19.4]} 43. Rxb6 {[%clk 0:00:14.2]} 43... Ra2+ {[%clk 0:00:18.4]} 44. Kf1
{[%clk 0:00:14.5]} 44... Rd2 {[%clk 0:00:16.7]} 45. Nxd5 {[%clk 0:00:13.4]}
45... Rxd4 {[%clk 0:00:16.4]} 46. Nxf6+ {[%clk 0:00:13.8]} 46... Kg7 {[%clk
0:00:15.9]} 47. Ne8+ {[%clk 0:00:13.8]} 47... Kf8 {[%clk 0:00:15.5]} 48. Nc7
{[%clk 0:00:13.9]} 48... Rd2 {[%clk 0:00:14.7]} 49. Ne6+ {[%clk 0:00:13.5]}
49... Ke7 {[%clk 0:00:14.1]} 50. Nf4 {[%clk 0:00:13.7]} 50... Kf7 {[%clk
0:00:11.6]} 51. Rb7+ {[%clk 0:00:13.5]} 51... Kf6 {[%clk 0:00:11]} 52. Rb6+
{[%clk 0:00:14.4]} 52... Kf7 {[%clk 0:00:11.3]} 53. Ke1 {[%clk 0:00:14.1]} 53...
Rh2 {[%clk 0:00:10.6]} 54. Rb7+ {[%clk 0:00:12.9]} 54... Kf6 {[%clk 0:00:10.8]}
55. Rb6+ {[%clk 0:00:13.8]} 55... Kf7 {[%clk 0:00:11.1]} 56. Kf1 {[%clk
0:00:10.5]} 56... Rc2 {[%clk 0:00:10.1]} 57. Ke1 {[%clk 0:00:09.3]} 57... Kg7
{[%clk 0:00:08.7]} 58. Ne6+ {[%clk 0:00:07.7]} 58... Bxe6 {[%clk 0:00:07.2]} 59.
Rxe6 {[%clk 0:00:07.6]} 59... Rg2 {[%clk 0:00:08.1]} 60. Kf1 {[%clk 0:00:03.4]}
60... Rxg3 {[%clk 0:00:08]} 61. Kf2 {[%clk 0:00:04]} 61... Rh3 {[%clk
0:00:08.3]} 62. Re4 {[%clk 0:00:03.2]} 62... Rh2+ {[%clk 0:00:08.6]} 63. Kg3
{[%clk 0:00:03.5]} 63... Rc2 {[%clk 0:00:09]} 64. Ra4 {[%clk 0:00:03.1]} 64...
Kh6 {[%clk 0:00:09]} 65. Ra6 {[%clk 0:00:02.9]} 65... Rc1 {[%clk 0:00:09.6]} 66.
Kg2 {[%clk 0:00:02.9]} 66... Rc2+ {[%clk 0:00:09.6]} 67. Kg3 {[%clk 0:00:03.5]}
67... Rc4 {[%clk 0:00:10.2]} 68. Kh3 {[%clk 0:00:03.2]} 68... Rf4 {[%clk
0:00:10.1]} 69. Kg3 {[%clk 0:00:03.8]} 69... Rf7 {[%clk 0:00:10.7]} 70. Kg2
{[%clk 0:00:04.1]} 70... Kg7 {[%clk 0:00:11.3]} 71. Kg3 {[%clk 0:00:04.7]} 71...
Rf5 {[%clk 0:00:11.6]} 72. Ra7+ {[%clk 0:00:04.5]} 72... Kh6 {[%clk 0:00:12]}
73. Ra6 {[%clk 0:00:05.1]} 73... Rb5 {[%clk 0:00:12.2]} 74. Kg2 {[%clk
0:00:05.2]} 74... Rb4 {[%clk 0:00:12.6]} 75. Kg3 {[%clk 0:00:05.8]} 75... Rc4
{[%clk 0:00:13.2]} 76. Rb6 {[%clk 0:00:06.1]} 76... Rd4 {[%clk 0:00:13]} 77. Ra6
{[%clk 0:00:06.5]} 77... Rb4 {[%clk 0:00:13.1]} 78. Rc6 {[%clk 0:00:06.8]} 78...
Rb1 {[%clk 0:00:13.6]} 79. Ra6 {[%clk 0:00:06.7]} 79... Rg1+ {[%clk 0:00:14.1]}
80. Kh2 {[%clk 0:00:06.6]} 80... Rf1 {[%clk 0:00:13.4]} 81. Kg2 {[%clk 0:00:07]}
81... Rd1 {[%clk 0:00:13.8]} 82. Kg3 {[%clk 0:00:07.2]} 82... Rd2 {[%clk
0:00:14.3]} 83. Rb6 {[%clk 0:00:06.9]} 83... Rd1 {[%clk 0:00:14.5]} 84. Ra6
{[%clk 0:00:06.8]} 84... Rg1+ {[%clk 0:00:14.2]} 85. Kf2 {[%clk 0:00:06.8]}
85... Rh1 {[%clk 0:00:13.9]} 86. Kg3 {[%clk 0:00:07.4]} 86... Rg1+ {[%clk
0:00:13.4]} 1/2-1/2

[Event "Late-Titled-Tuesday-Blitz-June-04-2024"]
[Site "Chess.com"]
[Date "2024.06.04"]
[Round "7"]
[White "Kielinkei"]
[Black "annasargsyan_m"]
[Result "1/2-1/2"]
[WhiteElo "2452"]
[BlackElo "2588"]
[TimeControl "180+1"]
[EndTime "15:17:41 PDT"]
[Termination "Game drawn by repetition"]

1. c4 {[%clk 0:03:00.9]} 1... c6 {[%clk 0:02:52.7]} 2. d4 {[%clk 0:02:59]} 2...
d5 {[%clk 0:02:53.6]} 3. Nf3 {[%clk 0:02:56.7]} 3... Nf6 {[%clk 0:02:54.2]} 4.
e3 {[%clk 0:02:55.4]} 4... e6 {[%clk 0:02:54]} 5. Nc3 {[%clk 0:02:54.7]} 5...
Nbd7 {[%clk 0:02:53]} 6. Bd3 {[%clk 0:02:53.1]} 6... dxc4 {[%clk 0:02:52.5]} 7.
Bxc4 {[%clk 0:02:54]} 7... b5 {[%clk 0:02:52.6]} 8. Bd3 {[%clk 0:02:53.3]} 8...
Bd6 {[%clk 0:02:53.3]} 9. O-O {[%clk 0:02:53.2]} 9... O-O {[%clk 0:02:53.8]} 10.
b3 {[%clk 0:02:52.6]} 10... e5 {[%clk 0:02:53.3]} 11. Bb2 {[%clk 0:02:48.2]}
11... Qe7 {[%clk 0:02:50]} 12. dxe5 {[%clk 0:02:36.8]} 12... Nxe5 {[%clk
0:02:50.9]} 13. Be2 {[%clk 0:02:24.1]} 13... Rd8 {[%clk 0:02:50]} 14. Qc2 {[%clk
0:02:23.2]} 14... Bg4 {[%clk 0:02:48.3]} 15. Nd4 {[%clk 0:02:03.4]} 15... Bxe2
{[%clk 0:02:43.9]} 16. Qxe2 {[%clk 0:02:02.4]} 16... Neg4 {[%clk 0:02:40.9]} 17.
g3 {[%clk 0:01:53.8]} 17... Qe5 {[%clk 0:02:39.8]} 18. Nf3 {[%clk 0:01:29.7]}
18... Qh5 {[%clk 0:02:39]} 19. Kg2 {[%clk 0:01:26.1]} 19... Re8 {[%clk
0:02:31.8]} 20. h3 {[%clk 0:01:21.1]} 20... Nh6 {[%clk 0:02:25.6]} 21. Nd4
{[%clk 0:01:14.5]} 21... Qg6 {[%clk 0:02:14.9]} 22. Qf3 {[%clk 0:01:04.2]} 22...
b4 {[%clk 0:02:12.8]} 23. Nce2 {[%clk 0:01:00.2]} 23... c5 {[%clk 0:02:09.4]}
24. Nb5 {[%clk 0:00:51.8]} 24... Nf5 {[%clk 0:02:08.4]} 25. Kh2 {[%clk 0:00:42]}
25... Nh4 {[%clk 0:02:00.2]} 26. Qh1 {[%clk 0:00:29.2]} 26... Be5 {[%clk
0:01:50.7]} 27. Bxe5 {[%clk 0:00:26.1]} 27... Rxe5 {[%clk 0:01:51.6]} 28. Qxa8+
{[%clk 0:00:25.7]} 28... Re8 {[%clk 0:01:49.3]} 29. Qh1 {[%clk 0:00:23]} 29...
Qd3 {[%clk 0:01:40.5]} 30. Nf4 {[%clk 0:00:20.1]} 30... Qxb5 {[%clk 0:01:40.5]}
31. gxh4 {[%clk 0:00:20.6]} 31... c4 {[%clk 0:01:37]} 32. bxc4 {[%clk
0:00:17.3]} 32... Qxc4 {[%clk 0:01:37.9]} 33. Rac1 {[%clk 0:00:11.5]} 33... Qxa2
{[%clk 0:01:37.6]} 34. Ra1 {[%clk 0:00:10.8]} 34... Qc2 {[%clk 0:01:32.7]} 35.
Rxa7 {[%clk 0:00:10.7]} 35... b3 {[%clk 0:01:33.4]} 36. Qb7 {[%clk 0:00:10.4]}
36... Rf8 {[%clk 0:01:32.2]} 37. Ra8 {[%clk 0:00:10.9]} 37... g6 {[%clk
0:01:30]} 38. Rxf8+ {[%clk 0:00:10.7]} 38... Kxf8 {[%clk 0:01:30.4]} 39. Ra1
{[%clk 0:00:08.3]} 39... Qxf2+ {[%clk 0:01:28.9]} 40. Ng2 {[%clk 0:00:08.2]}
40... b2 {[%clk 0:01:26.6]} 41. Ra8+ {[%clk 0:00:08]} 41... Kg7 {[%clk
0:01:27.1]} 42. Rb8 {[%clk 0:00:08.6]} 42... Qd2 {[%clk 0:01:05.1]} 43. Qxb2
{[%clk 0:00:08.5]} 43... Qd6+ {[%clk 0:01:05.9]} 44. Kh1 {[%clk 0:00:06.6]}
44... Qd1+ {[%clk 0:01:05.4]} 45. Kh2 {[%clk 0:00:07.1]} 45... Qd6+ {[%clk
0:01:06]} 46. Nf4 {[%clk 0:00:07.3]} 46... h6 {[%clk 0:01:05.4]} 47. Rb6 {[%clk
0:00:07.4]} 47... Qd8 {[%clk 0:01:03.7]} 48. Nd5 {[%clk 0:00:04.5]} 48... Qxd5
{[%clk 0:00:58.7]} 49. Qxf6+ {[%clk 0:00:05]} 49... Kh7 {[%clk 0:00:59.2]} 50.
Rb2 {[%clk 0:00:04.9]} 50... h5 {[%clk 0:00:55.6]} 51. Rf2 {[%clk 0:00:05.4]}
51... Kg8 {[%clk 0:00:55.4]} 52. Qf4 {[%clk 0:00:05.2]} 52... Qe6 {[%clk
0:00:54.1]} 53. Qf3 {[%clk 0:00:04.6]} 53... Kg7 {[%clk 0:00:53]} 54. Qg3 {[%clk
0:00:05.3]} 54... Kg8 {[%clk 0:00:51.2]} 55. Qg2 {[%clk 0:00:05.9]} 55... Qxe3
{[%clk 0:00:49.9]} 56. Qf3 {[%clk 0:00:05.2]} 56... Qe5+ {[%clk 0:00:49.6]} 57.
Qf4 {[%clk 0:00:05.4]} 57... Qe6 {[%clk 0:00:49.5]} 58. Rg2 {[%clk 0:00:05.3]}
58... Kg7 {[%clk 0:00:47.7]} 59. Qg3 {[%clk 0:00:05.9]} 59... Kh7 {[%clk
0:00:47.2]} 60. Qc7 {[%clk 0:00:06.1]} 60... Kg7 {[%clk 0:00:46.5]} 61. Rf2
{[%clk 0:00:06.5]} 61... Kg8 {[%clk 0:00:41.1]} 62. Qg3 {[%clk 0:00:06.8]} 62...
Kg7 {[%clk 0:00:39.6]} 63. Kg2 {[%clk 0:00:07.5]} 63... Qe4+ {[%clk 0:00:38.5]}
64. Qf3 {[%clk 0:00:06.2]} 64... Qe6 {[%clk 0:00:39.1]} 65. Qf4 {[%clk
0:00:05.7]} 65... Qd5+ {[%clk 0:00:38.2]} 66. Rf3 {[%clk 0:00:06.1]} 66... Qa2+
{[%clk 0:00:37.2]} 67. Kg3 {[%clk 0:00:06.5]} 67... Qe6 {[%clk 0:00:36.1]} 68.
Qd4+ {[%clk 0:00:06.3]} 68... Kg8 {[%clk 0:00:33.7]} 69. Qe3 {[%clk 0:00:07]}
69... Qd6+ {[%clk 0:00:33]} 70. Rf4 {[%clk 0:00:07.4]} 70... Qd5 {[%clk
0:00:28.6]} 71. Re4 {[%clk 0:00:07.2]} 71... Qd6+ {[%clk 0:00:24.8]} 72. Kg2
{[%clk 0:00:07]} 72... Qd5 {[%clk 0:00:23.9]} 73. Kh2 {[%clk 0:00:07.6]} 73...
Qd6+ {[%clk 0:00:23.7]} 74. Qf4 {[%clk 0:00:08]} 74... Qd5 {[%clk 0:00:23.3]}
75. Qf3 {[%clk 0:00:06.2]} 75... Qd6+ {[%clk 0:00:23]} 76. Qg3 {[%clk
0:00:06.7]} 76... Qd5 {[%clk 0:00:22.5]} 77. Qe3 {[%clk 0:00:07.3]} 77... Qd6+
{[%clk 0:00:21.9]} 78. Kg1 {[%clk 0:00:08]} 78... Qf6 {[%clk 0:00:21.4]} 79. Qh6
{[%clk 0:00:04.6]} 79... Qb6+ {[%clk 0:00:20.4]} 80. Kg2 {[%clk 0:00:02.3]}
80... Qc6 {[%clk 0:00:20.7]} 81. Qe3 {[%clk 0:00:01.9]} 81... f5 {[%clk
0:00:20.4]} 82. Qb3+ {[%clk 0:00:02.5]} 82... Kg7 {[%clk 0:00:18.9]} 83. Qb2+
{[%clk 0:00:03.1]} 83... Kh7 {[%clk 0:00:18.2]} 84. Qe5 {[%clk 0:00:01.9]} 84...
Qxe4+ {[%clk 0:00:17.7]} 85. Qxe4 {[%clk 0:00:02.4]} 85... fxe4 {[%clk
0:00:18.5]} 86. Kf2 {[%clk 0:00:03.2]} 86... Kg7 {[%clk 0:00:16.1]} 87. Ke3
{[%clk 0:00:03.8]} 87... Kf6 {[%clk 0:00:15.8]} 88. Kxe4 {[%clk 0:00:04.5]}
88... Ke6 {[%clk 0:00:16.5]} 89. Kf4 {[%clk 0:00:04.5]} 89... Kf6 {[%clk
0:00:17.1]} 90. Ke4 {[%clk 0:00:05]} 90... Ke6 {[%clk 0:00:17.8]} 91. Kf4 {[%clk
0:00:05.2]} 91... Kf6 {[%clk 0:00:18.5]} 92. Ke4 {[%clk 0:00:05.9]} 1/2-1/2